[Event "VIII Iberoamericano Mexico 2022"]
[Site "Mexico City"]
[Date "2022.02.17"]
[Round "6.27"]
[White "Fernandez Sanchez, Mario Andres"]
[Black "Herrera Ortiz, Miguel"]
[Result "1/2-1/2"]
[ECO "D02"]
[WhiteElo "2093"]
[BlackElo "2297"]
[Annotator "NA"]
[PlyCount "109"]
[EventDate "2022.02.12"]
[EventType "swiss"]
[EventCountry "MEX"]
[SourceTitle "playchess.com"]
[Source "ChessBase"]
[SourceQuality "1"]
[TimeControl "5400+30"]

1. d4 {[%emt 0:00:05]} d5 {[%emt 0:00:20]} 2. Bf4 {[%emt 0:00:08]} Nf6 {[%emt 0:00:28]} 3. e3 {[%emt 0:00:04]} e6 {[%emt 0:00:21]} 4. Nf3 {[%emt 0:00:03]} Bd6 {[%emt 0:00:17]} 5. Bg3 {[%emt 0:02:52]} O-O {[%emt 0:00:27]} 6. Nbd2 {[%emt 0:00:13]} b6 {[%emt 0:00:23]} 7. c3 {[%emt 0:00:05]} c5 {[%emt 0:02:10]} 8. Ne5 {[%emt 0:06:11]} Bb7 {[%emt 0:09:44]} 9. Bd3 {[%emt 0:00:05]} Nc6 {[%emt 0:00:14]} 10. O-O {[%emt 0:00:15]} Qc7 {[%emt 0:03:04]} 11. f4 {[%emt 0:01:30]} Ne7 {[%emt 0:00:55]} 12. Bh4 {[%emt 0:06:38]} Ne4 {[%emt 0:01:41]} 13. Bxe7 {[%emt 0:08:03]} Qxe7 {[%emt 0:02:03]} 14. Qc2 {[%emt 0:08:16]} Nxd2 {[%emt 0:03:24]} 15. Qxd2 {[%emt 0:00:39]} f6 {[%emt 0:02:25]} 16. Qc2 {[%emt 0:23:17]} g6 {[%emt 0:08:54]} 17. Nf3 {[%emt 0:23:06]} Rac8 {[%emt 0:05:50]} 18. Nh4 {[%emt 0:01:38]} Rf7 {[%emt 0:13:54]} 19. Rae1 {[%emt 0:03:21]} Rg7 {[%emt 0:05:41]} 20. Qe2 {[%emt 0:06:24]} c4 {[%emt 0:07:31]} 21. Bc2 {[%emt 0:00:57]} e5 {[%emt 0:00:31]} 22. fxe5 {[%emt 0:03:23]} fxe5 {[%emt 0:00:20]} 23. dxe5 {[%emt 0:00:19]} Qxe5 {[%emt 0:03:02]} 24. Nf3 {[%emt 0:00:02]} Qh5 {[%emt 0:00:50]} 25. e4 {[%emt 0:03:06]} Re7 {[%emt 0:07:50]} 26. e5 {[%emt 0:00:07]} Bc7 {[%emt 0:02:27]} 27. Qf2 {[%emt 0:01:14]} Rf8 {[%emt 0:02:32]} 28. Qd4 {[%emt 0:00:01]} g5 {[%emt 0:01:13]} 29. h3 {[%emt 0:00:01]} Rf4 {[%emt 0:00:46]} 30. Qd2 {[%emt 0:00:01]} h6 {[%emt 0:02:40]} 31. Bd1 {[%emt 0:02:06]} Qe8 {[%emt 0:00:28]} 32. Bc2 {[%emt 0:00:09]} b5 {[%emt 0:05:23]} 33. Nd4 {[%emt 0:00:21]} Rxe5 {[%emt 0:01:54]} 34. Nf5 {[%emt 0:00:37]} Qf8 {[%emt 0:01:35]} 35. Rxf4 {[%emt 0:00:29]} gxf4 {[%emt 0:00:35]} 36. Rxe5 {[%emt 0:00:12]} Bxe5 {[%emt 0:00:10]} 37. Qe2 {[%emt 0:00:16]} Qf6 {[%emt 0:01:17]} 38. Nxh6+ {[%emt 0:00:11]} Qxh6 {[%emt 0:00:56]} 39. Qxe5 {[%emt 0:00:02]} Bc6 {[%emt 0:02:47]} 40. Bf5 {[%emt 0:00:24]} f3 {[%emt 0:01:16]} 41. Qg3+ {[%emt 0:00:39]} Kf8 {[%emt 0:00:44]} 42. Qxf3 {[%emt 0:00:25]} Ke7 {[%emt 0:00:01]} 43. Kf2 {[%emt 0:01:15]} d4 {[%emt 0:00:55]} 44. Qg3 {[%emt 0:02:39]} Qd2+ {[%emt 0:01:37]} 45. Kg1 {[%emt 0:00:00]} d3 {[%emt 0:00:17]} 46. Qc7+ {[%emt 0:00:39]} Kf8 {[%emt 0:00:08]} 47. Qc8+ {[%emt 0:00:49]} Kf7 {[%emt 0:00:12]} 48. Qc7+ {[%emt 0:00:03]} Kf8 {[%emt 0:00:01]} 49. Qc8+ {[%emt 0:00:23]} Kf7 {[%emt 0:00:03]} 50. Qe6+ {[%emt 0:01:06]} Kg7 {[%emt 0:00:48]} 51. Qg6+ {[%emt 0:00:12]} Kf8 {[%emt 0:00:01]} 52. Qf6+ {[%emt 0:00:24]} Kg8 {[%emt 0:00:02]} 53. Qg6+ {[%emt 0:00:53]} Kf8 {[%emt 0:00:03]} 54. Qf6+ {[%emt 0:00:36]} Kg8 {[%emt 0:00:03]} 55. Qg6+ {[%emt 0:00:19]} 1/2-1/2

[Event "VIII Iberoamericano Mexico 2022"]
[Site "Mexico City"]
[Date "2022.02.17"]
[Round "6.28"]
[White "Ortiz Verdezoto, Anahi"]
[Black "Medina Diaz, Rafael Alejandro"]
[Result "1/2-1/2"]
[ECO "D10"]
[WhiteElo "2047"]
[BlackElo "2287"]
[Annotator "NA"]
[PlyCount "123"]
[EventDate "2022.02.12"]
[EventType "swiss"]
[EventCountry "MEX"]
[SourceTitle "playchess.com"]
[Source "ChessBase"]
[SourceQuality "1"]
[TimeControl "5400+30"]

1. d4 {[%emt 0:00:03]} d5 {[%emt 0:03:26]} 2. c4 {[%emt 0:00:08]} c6 {[%emt 0:00:04]} 3. cxd5 cxd5 {[%emt 0:00:02]} 4. Bf4 {[%emt 0:00:19]} Nc6 {[%emt 0:00:12]} 5. e3 {[%emt 0:00:07]} Bf5 {[%emt 0:00:37]} 6. Nc3 {[%emt 0:02:20]} Nf6 {[%emt 0:00:20]} 7. Qb3 {[%emt 0:00:22]} Na5 {[%emt 0:01:14]} 8. Qa4+ {[%emt 0:00:06]} Bd7 {[%emt 0:00:05]} 9. Qc2 {[%emt 0:00:06]} Nc6 {[%emt 0:00:41]} 10. a3 {[%emt 0:00:41]} e6 {[%emt 0:00:45]} 11. Nf3 {[%emt 0:00:17]} Be7 {[%emt 0:01:52]} 12. Bd3 {[%emt 0:01:43]} O-O {[%emt 0:02:03]} 13. O-O {[%emt 0:00:08]} Rc8 {[%emt 0:00:11]} 14. Rac1 {[%emt 0:05:23]} h6 {[%emt 0:01:22]} 15. h3 {[%emt 0:00:10]} Nh5 {[%emt 0:00:59]} 16. Bh2 {[%emt 0:00:08]} f5 {[%emt 0:00:09]} 17. Qe2 {[%emt 0:02:36]} Nf6 {[%emt 0:03:26]} 18. Ne5 {[%emt 0:09:20]} Nxe5 {[%emt 0:03:41]} 19. Bxe5 {[%emt 0:00:11]} Ne4 {[%emt 0:03:43]} 20. Nxe4 {[%emt 0:07:52]} fxe4 {[%emt 0:00:07]} 21. Bb5 {[%emt 0:05:14]} Bf6 {[%emt 0:05:04]} 22. Bg3 {[%emt 0:04:06]} a6 {[%emt 0:00:33]} 23. Bxd7 {[%emt 0:00:05]} Qxd7 {[%emt 0:00:05]} 24. Qg4 {[%emt 0:00:45]} Rxc1 {[%emt 0:02:11]} 25. Rxc1 {[%emt 0:00:11]} Rc8 {[%emt 0:00:50]} 26. Rf1 {[%emt 0:03:33]} Qf7 {[%emt 0:04:22]} 27. Qd1 {[%emt 0:07:02]} Rc6 {[%emt 0:03:08]} 28. Kh2 {[%emt 0:05:41]} Kh7 {[%emt 0:03:11]} 29. Qb1 {[%emt 0:02:14]} Qg6 {[%emt 0:02:14]} 30. Rc1 {[%emt 0:00:14]} Qe8 {[%emt 0:00:29]} 31. f3 {[%emt 0:02:22]} Rxc1 {[%emt 0:07:40]} 32. Qxc1 {[%emt 0:00:02]} Qb5 {[%emt 0:01:17]} 33. fxe4 {[%emt 0:01:42]} dxe4 {[%emt 0:00:09]} 34. Qc8 {[%emt 0:00:50]} Qb3 {[%emt 0:01:11]} 35. Bf4 {[%emt 0:01:22]} Qd5 {[%emt 0:02:54]} 36. Qc7 {[%emt 0:02:44]} Kg6 {[%emt 0:02:31]} 37. Qc8 {[%emt 0:01:07]} Kh7 {[%emt 0:04:21]} 38. Qc7 {[%emt 0:03:35]} Qb5 {[%emt 0:04:19]} 39. Qf7 {[%emt 0:00:28]} Qd5 {[%emt 0:03:52]} 40. b4 {[%emt 0:00:38]} h5 {[%emt 0:04:28]} 41. a4 {[%emt 0:02:22]} b5 {[%emt 0:02:21]} 42. a5 {[%emt 0:01:01]} h4 {[%emt 0:02:24]} 43. Qe8 {[%emt 0:01:34]} Qf5 {[%emt 0:01:05]} 44. Qf7 {[%emt 0:04:02]} Qd5 {[%emt 0:00:02]} 45. Kh1 {[%emt 0:03:32]} Qc6 {[%emt 0:00:29]} 46. Qh5+ {[%emt 0:02:04]} Kg8 {[%emt 0:00:01]} 47. Qg6 {[%emt 0:00:38]} Kf8 {[%emt 0:02:42]} 48. Qh7 {[%emt 0:05:13]} Kf7 {[%emt 0:01:03]} 49. Qh5+ {[%emt 0:01:59]} Kg8 {[%emt 0:00:25]} 50. Qg6 {[%emt 0:02:24]} Kf8 {[%emt 0:00:32]} 51. Qh7 {[%emt 0:03:08]} Kf7 {[%emt 0:00:12]} 52. Qh8 {[%emt 0:04:03]} Qc1+ {[%emt 0:07:32]} 53. Kh2 {[%emt 0:00:02]} Bxd4 {[%emt 0:00:37]} 54. Qh5+ {[%emt 0:00:28]} Ke7 {[%emt 0:00:07]} 55. Qg6 {[%emt 0:05:05]} Bf6 {[%emt 0:02:20]} 56. Qxe4 {[%emt 0:00:05]} Qc8 {[%emt 0:03:34]} 57. Be5 {[%emt 0:00:25]} Qc4 {[%emt 0:01:01]} 58. Qb7+ {[%emt 0:01:47]} Ke8 {[%emt 0:00:12]} 59. Bd6 {[%emt 0:01:01]} Qd5 {[%emt 0:00:33]} 60. Qxa6 {[%emt 0:02:26]} Be5+ {[%emt 0:00:13]} 61. Bxe5 {[%emt 0:00:02]} Qxe5+ {[%emt 0:00:00]} 62. Kh1 {[%emt 0:02:14]} 1/2-1/2

[Event "VIII Iberoamericano Mexico 2022"]
[Site "Mexico City"]
[Date "2022.02.17"]
[Round "6.29"]
[White "Zarate Manjarrez, Alfredo"]
[Black "Miranda Llanes, Yerisbel"]
[Result "0-1"]
[ECO "C26"]
[WhiteElo "2026"]
[BlackElo "2261"]
[Annotator "NA"]
[PlyCount "110"]
[EventDate "2022.02.12"]
[EventType "swiss"]
[EventCountry "MEX"]
[SourceTitle "playchess.com"]
[Source "ChessBase"]
[SourceQuality "1"]
[TimeControl "5400+30"]

1. e4 {[%emt 0:00:12]} e5 {[%emt 0:00:15]} 2. Nc3 {[%emt 0:01:33]} Nf6 {[%emt 0:00:59]} 3. g3 {[%emt 0:00:16]} d5 {[%emt 0:00:53]} 4. exd5 Nxd5 {[%emt 0:00:01]} 5. Bg2 {[%emt 0:00:17]} Nxc3 6. bxc3 {[%emt 0:00:05]} Bc5 {[%emt 0:00:57]} 7. Ne2 {[%emt 0:15:04]} Nc6 {[%emt 0:00:59]} 8. d3 {[%emt 0:01:09]} O-O {[%emt 0:00:44]} 9. O-O {[%emt 0:00:05]} Bg4 {[%emt 0:01:52]} 10. Be3 {[%emt 0:05:40]} Bb6 {[%emt 0:02:45]} 11. h3 {[%emt 0:08:12]} Bh5 {[%emt 0:05:01]} 12. Kh2 {[%emt 0:00:53]} f5 {[%emt 0:06:40]} 13. Qd2 {[%emt 0:02:05]} f4 {[%emt 0:06:06]} 14. Bxb6 {[%emt 0:01:10]} axb6 {[%emt 0:00:25]} 15. Be4 {[%emt 0:00:28]} Ra4 {[%emt 0:06:48]} 16. f3 {[%emt 0:05:59]} Ne7 {[%emt 0:05:45]} 17. gxf4 {[%emt 0:19:57]} exf4 {[%emt 0:01:20]} 18. d4 {[%emt 0:00:11]} Bf7 {[%emt 0:03:42]} 19. Rg1 {[%emt 0:07:08]} Be6 {[%emt 0:05:17]} 20. Rg5 {[%emt 0:07:39]} h6 {[%emt 0:04:05]} 21. Re5 {[%emt 0:02:07]} Qd6 {[%emt 0:01:28]} 22. Rg1 {[%emt 0:03:05]} Bxa2 {[%emt 0:10:02]} 23. Nxf4 {[%emt 0:01:37]} Ra5 {[%emt 0:01:04]} 24. Ne6 {[%emt 0:03:29]} Bxe6 {[%emt 0:13:45]} 25. Qxh6 {[%emt 0:00:09]} Rf7 {[%emt 0:00:09]} 26. Qxe6 {[%emt 0:00:12]} Qxe6 27. Rxe6 {[%emt 0:00:02]} Nd5 {[%emt 0:03:05]} 28. Re8+ {[%emt 0:04:14]} Rf8 {[%emt 0:00:10]} 29. Bh7+ {[%emt 0:00:11]} Kf7 {[%emt 0:00:16]} 30. Bg6+ {[%emt 0:00:01]} Kg8 {[%emt 0:00:19]} 31. Rxf8+ {[%emt 0:01:51]} Kxf8 {[%emt 0:00:02]} 32. Re1 {[%emt 0:00:06]} Ne7 {[%emt 0:02:41]} 33. Bd3 {[%emt 0:00:30]} Ra3 {[%emt 0:01:34]} 34. c4 {[%emt 0:00:59]} Kf7 {[%emt 0:00:13]} 35. Kg3 {[%emt 0:01:20]} Nc6 {[%emt 0:03:25]} 36. Re4 {[%emt 0:00:15]} Nb4 {[%emt 0:02:24]} 37. Rf4+ {[%emt 0:00:10]} Ke6 {[%emt 0:00:53]} 38. Bf5+ {[%emt 0:02:43]} Kf6 {[%emt 0:00:01]} 39. Be4+ {[%emt 0:00:14]} Ke6 {[%emt 0:00:48]} 40. Rg4 {[%emt 0:01:42]} Kf7 {[%emt 0:00:44]} 41. Kf4 {[%emt 0:02:10]} Rc3 {[%emt 0:01:16]} 42. Kg5 {[%emt 0:01:06]} Nxc2 {[%emt 0:04:21]} 43. Bxb7 {[%emt 0:00:51]} Ne3 {[%emt 0:02:07]} 44. Rf4+ {[%emt 0:00:59]} Ke6 {[%emt 0:00:22]} 45. Kg6 {[%emt 0:01:15]} Nxc4 {[%emt 0:00:35]} 46. Kxg7 {[%emt 0:00:20]} Nd6 {[%emt 0:00:30]} 47. Rf6+ {[%emt 0:00:53]} Ke7 {[%emt 0:00:37]} 48. Rxd6 {[%emt 0:00:33]} Kxd6 {[%emt 0:01:55]} 49. Be4 {[%emt 0:00:07]} Rc1 {[%emt 0:00:59]} 50. f4 {[%emt 0:01:27]} Re1 {[%emt 0:01:54]} 51. Bg6 {[%emt 0:00:13]} Rh1 {[%emt 0:00:20]} 52. f5 {[%emt 0:02:54]} Rxh3 {[%emt 0:00:10]} 53. Bf7 {[%emt 0:00:21]} Rh4 {[%emt 0:01:57]} 54. f6 {[%emt 0:00:45]} Rxd4 {[%emt 0:00:19]} 55. Bb3 {[%emt 0:00:31]} Rf4 {[%emt 0:00:23]} 0-1

[Event "VIII Iberoamericano Mexico 2022"]
[Site "Mexico City"]
[Date "2022.02.17"]
[Round "6.30"]
[White "Estrada Nieto, Julian"]
[Black "Jorajuria Mendoza, Algol"]
[Result "1-0"]
[ECO "B31"]
[WhiteElo "2253"]
[BlackElo "2006"]
[Annotator "NA"]
[PlyCount "84"]
[EventDate "2022.02.12"]
[EventType "swiss"]
[EventCountry "MEX"]
[SourceTitle "playchess.com"]
[Source "ChessBase"]
[SourceQuality "1"]
[TimeControl "5400+30"]

1. e4 {[%emt 0:00:01]} c5 {[%emt 0:00:06]} 2. Nf3 {[%emt 0:00:05]} Nc6 {[%emt 0:00:05]} 3. Bb5 {[%emt 0:00:04]} g6 {[%emt 0:00:07]} 4. Bxc6 {[%emt 0:00:18]} dxc6 {[%emt 0:00:06]} 5. d3 {[%emt 0:00:04]} Bg7 {[%emt 0:00:13]} 6. h3 {[%emt 0:00:05]} Nf6 {[%emt 0:00:33]} 7. Nc3 {[%emt 0:00:15]} Nd7 {[%emt 0:00:28]} 8. Be3 {[%emt 0:00:17]} e5 {[%emt 0:00:15]} 9. Qd2 {[%emt 0:00:16]} h6 {[%emt 0:00:10]} 10. O-O {[%emt 0:02:23]} b6 {[%emt 0:00:26]} 11. Nh2 {[%emt 0:10:24]} Nf8 {[%emt 0:00:15]} 12. f4 {[%emt 0:00:30]} exf4 {[%emt 0:00:05]} 13. Rxf4 {[%emt 0:00:42]} g5 {[%emt 0:00:06]} 14. Rf2 {[%emt 0:00:18]} Be6 {[%emt 0:00:35]} 15. a4 {[%emt 0:36:37]} Qd6 {[%emt 0:06:29]} 16. Nf3 {[%emt 0:04:29]} Ng6 {[%emt 0:01:30]} 17. d4 {[%emt 0:00:57]} Rd8 {[%emt 0:05:55]} 18. dxc5 {[%emt 0:03:57]} Qg3 {[%emt 0:00:37]} 19. Qe1 {[%emt 0:03:18]} Ne5 {[%emt 0:14:45]} 20. Ne2 {[%emt 0:16:18]} Nxf3+ {[%emt 0:00:22]} 21. Rxf3 {[%emt 0:00:02]} Qxe1+ {[%emt 0:06:56]} 22. Rxe1 {[%emt 0:00:05]} bxc5 {[%emt 0:02:09]} 23. Bxc5 {[%emt 0:06:46]} Bxb2 {[%emt 0:00:28]} 24. Rb1 {[%emt 0:01:20]} Be5 {[%emt 0:00:27]} 25. Rd3 {[%emt 0:02:55]} Bc4 {[%emt 0:03:13]} 26. Rxd8+ {[%emt 0:05:04]} Kxd8 {[%emt 0:00:05]} 27. Nd4 {[%emt 0:00:30]} Kc7 {[%emt 0:00:25]} 28. Bxa7 {[%emt 0:00:38]} Re8 {[%emt 0:05:20]} 29. Nf5 {[%emt 0:00:56]} Bf4 {[%emt 0:00:53]} 30. Bb6+ {[%emt 0:01:43]} Kc8 {[%emt 0:00:18]} 31. g3 {[%emt 0:00:35]} Bb8 {[%emt 0:00:33]} 32. Re1 {[%emt 0:00:55]} Bd5 {[%emt 0:00:22]} 33. Kf2 {[%emt 0:01:44]} Rxe4 {[%emt 0:01:06]} 34. Rxe4 {[%emt 0:00:07]} Bxe4 {[%emt 0:00:04]} 35. Nxh6 {[%emt 0:00:05]} f5 {[%emt 0:02:57]} 36. c3 {[%emt 0:00:35]} Bd6 {[%emt 0:01:44]} 37. Nf7 {[%emt 0:00:16]} Be7 {[%emt 0:00:07]} 38. Be3 {[%emt 0:00:25]} g4 {[%emt 0:00:34]} 39. h4 {[%emt 0:02:16]} Kd7 {[%emt 0:00:34]} 40. Ne5+ {[%emt 0:00:08]} Kd6 {[%emt 0:00:33]} 41. Ng6 {[%emt 0:00:24]} Bf6 {[%emt 0:01:27]} 42. Bd4 {[%emt 0:00:11]} Kd5 {[%emt 0:01:56]} 1-0

[Event "VIII Iberoamericano Mexico 2022"]
[Site "Mexico City"]
[Date "2022.02.17"]
[Round "6.31"]
[White "Frey Beckman, Kenneth"]
[Black "Arvizu Borchardt, David Ivan"]
[Result "1/2-1/2"]
[ECO "D27"]
[WhiteElo "2242"]
[BlackElo "1987"]
[Annotator "NA"]
[PlyCount "38"]
[EventDate "2022.02.12"]
[EventType "swiss"]
[EventCountry "MEX"]
[SourceTitle "playchess.com"]
[Source "ChessBase"]
[SourceQuality "1"]
[TimeControl "5400+30"]

1. Nf3 {[%emt 0:00:05]} d5 {[%emt 0:00:06]} 2. d4 {[%emt 0:00:12]} Nf6 {[%emt 0:00:09]} 3. c4 {[%emt 0:00:13]} dxc4 {[%emt 0:00:06]} 4. e3 {[%emt 0:00:15]} e6 {[%emt 0:00:09]} 5. Bxc4 {[%emt 0:00:11]} c5 {[%emt 0:00:06]} 6. O-O {[%emt 0:00:18]} a6 {[%emt 0:00:03]} 7. Bb3 {[%emt 0:00:29]} Nc6 {[%emt 0:02:19]} 8. Nc3 {[%emt 0:00:22]} cxd4 {[%emt 0:01:44]} 9. exd4 {[%emt 0:01:08]} Be7 {[%emt 0:00:15]} 10. Re1 {[%emt 0:02:58]} O-O {[%emt 0:01:29]} 11. Bg5 {[%emt 0:02:37]} b5 {[%emt 0:09:18]} 12. Qd3 {[%emt 0:14:08]} Bb7 {[%emt 0:04:05]} 13. Rad1 {[%emt 0:00:17]} Nb4 {[%emt 0:02:07]} 14. Qd2 {[%emt 0:01:03]} Bxf3 {[%emt 0:05:46]} 15. gxf3 {[%emt 0:00:08]} Nbd5 {[%emt 0:04:55]} 16. Nxd5 {[%emt 0:02:07]} Nxd5 {[%emt 0:08:46]} 17. Bxe7 {[%emt 0:00:14]} Nxe7 {[%emt 0:00:05]} 18. d5 {[%emt 0:00:15]} Nxd5 {[%emt 0:01:09]} 19. Bxd5 {[%emt 0:00:11]} exd5 {[%emt 0:01:18]} 1/2-1/2

[Event "VIII Iberoamericano Mexico 2022"]
[Site "Mexico City"]
[Date "2022.02.17"]
[Round "6.32"]
[White "Tapie Amione, Pablo Adib"]
[Black "Benito De Leo, Estefania"]
[Result "1-0"]
[ECO "C88"]
[WhiteElo "2241"]
[BlackElo "1657"]
[Annotator "NA"]
[PlyCount "85"]
[EventDate "2022.02.12"]
[EventType "swiss"]
[EventCountry "MEX"]
[SourceTitle "playchess.com"]
[Source "ChessBase"]
[SourceQuality "1"]
[TimeControl "5400+30"]

1. e4 {[%emt 0:01:26]} e5 {[%emt 0:00:10]} 2. Nf3 {[%emt 0:00:12]} Nc6 {[%emt 0:00:04]} 3. Bb5 {[%emt 0:00:36]} a6 {[%emt 0:00:05]} 4. Ba4 {[%emt 0:00:04]} Nf6 {[%emt 0:00:05]} 5. O-O {[%emt 0:00:07]} Be7 {[%emt 0:00:05]} 6. Re1 {[%emt 0:00:13]} b5 {[%emt 0:00:04]} 7. Bb3 {[%emt 0:00:03]} O-O {[%emt 0:00:13]} 8. a4 {[%emt 0:01:18]} b4 {[%emt 0:03:57]} 9. a5 {[%emt 0:07:14]} d6 {[%emt 0:01:41]} 10. d3 {[%emt 0:01:21]} Rb8 {[%emt 0:12:44]} 11. Nbd2 {[%emt 0:02:31]} Re8 {[%emt 0:03:56]} 12. c3 {[%emt 0:06:34]} Bf8 {[%emt 0:07:34]} 13. d4 {[%emt 0:08:52]} bxc3 {[%emt 0:10:53]} 14. bxc3 {[%emt 0:00:09]} d5 {[%emt 0:05:02]} 15. exd5 {[%emt 0:27:38]} Nxd5 {[%emt 0:02:07]} 16. Bxd5 {[%emt 0:00:36]} Qxd5 {[%emt 0:00:10]} 17. c4 {[%emt 0:00:03]} Qd8 {[%emt 0:02:29]} 18. d5 {[%emt 0:00:28]} Nb4 {[%emt 0:08:13]} 19. Ba3 {[%emt 0:03:23]} f6 {[%emt 0:15:12]} 20. Ne4 {[%emt 0:03:43]} Bf5 {[%emt 0:02:48]} 21. Ng3 {[%emt 0:06:10]} Bc2 {[%emt 0:00:07]} 22. Qd2 {[%emt 0:00:21]} Bg6 {[%emt 0:04:55]} 23. Nh4 {[%emt 0:04:01]} Bf7 {[%emt 0:00:01]} 24. Reb1 {[%emt 0:01:07]} Nc6 {[%emt 0:00:41]} 25. Rxb8 {[%emt 0:00:54]} Nxb8 {[%emt 0:00:09]} 26. Bxf8 {[%emt 0:00:14]} Rxf8 {[%emt 0:00:47]} 27. Ngf5 {[%emt 0:01:11]} c6 {[%emt 0:04:40]} 28. Qb4 {[%emt 0:01:01]} cxd5 {[%emt 0:01:30]} 29. cxd5 {[%emt 0:00:04]} Kh8 {[%emt 0:01:19]} 30. Rd1 {[%emt 0:00:43]} Nd7 {[%emt 0:01:48]} 31. h3 {[%emt 0:01:40]} g6 {[%emt 0:01:15]} 32. Ne7 {[%emt 0:07:06]} Qb8 {[%emt 0:01:07]} 33. Qa3 {[%emt 0:06:21]} Qb5 {[%emt 0:02:04]} 34. Qd6 {[%emt 0:01:02]} Qa4 {[%emt 0:02:55]} 35. Rc1 {[%emt 0:00:02]} Qxh4 {[%emt 0:00:13]} 36. Qxd7 {[%emt 0:00:02]} Qb4 {[%emt 0:01:50]} 37. Qc7 {[%emt 0:01:27]} Re8 {[%emt 0:04:05]} 38. d6 {[%emt 0:00:06]} Be6 {[%emt 0:01:22]} 39. Nc6 {[%emt 0:02:48]} Qa3 {[%emt 0:01:04]} 40. Nd8 {[%emt 0:00:23]} Qb2 {[%emt 0:00:34]} 41. Nxe6 {[%emt 0:00:09]} Rxe6 {[%emt 0:00:13]} 42. d7 {[%emt 0:00:02]} Kg7 {[%emt 0:00:45]} 43. d8=N+ {[%emt 0:00:19]} 1-0

[Event "VIII Iberoamericano Mexico 2022"]
[Site "Mexico City"]
[Date "2022.02.17"]
[Round "6.33"]
[White "Guerrero Rodriguez, Alejandra"]
[Black "Miranda Rodriguez, Tania"]
[Result "0-1"]
[ECO "C78"]
[WhiteElo "2019"]
[BlackElo "2174"]
[Annotator "NA"]
[PlyCount "50"]
[EventDate "2022.02.12"]
[EventType "swiss"]
[EventCountry "MEX"]
[SourceTitle "playchess.com"]
[Source "ChessBase"]
[SourceQuality "1"]
[TimeControl "5400+30"]

1. e4 {[%emt 0:03:03]} e5 {[%emt 0:00:23]} 2. Nf3 {[%emt 0:00:56]} Nc6 {[%emt 0:00:12]} 3. Bb5 {[%emt 0:00:08]} a6 {[%emt 0:00:30]} 4. Ba4 {[%emt 0:00:09]} Nf6 {[%emt 0:00:21]} 5. O-O {[%emt 0:01:49]} b5 {[%emt 0:00:32]} 6. Bb3 {[%emt 0:00:09]} Bc5 {[%emt 0:00:07]} 7. a4 {[%emt 0:00:38]} Rb8 {[%emt 0:00:26]} 8. Nxe5 {[%emt 0:04:32]} Nxe5 {[%emt 0:06:08]} 9. d4 {[%emt 0:00:58]} Bxd4 {[%emt 0:01:03]} 10. Qxd4 {[%emt 0:00:08]} d6 {[%emt 0:00:48]} 11. f4 {[%emt 0:00:13]} c5 {[%emt 0:01:26]} 12. Qd1 {[%emt 0:06:09]} Neg4 {[%emt 0:05:26]} 13. e5 {[%emt 0:06:38]} c4 {[%emt 0:21:17]} 14. a5 {[%emt 0:10:27]} Ne4 {[%emt 0:06:52]} 15. Qd4 {[%emt 0:10:10]} d5 {[%emt 0:14:40]} 16. Ba2 {[%emt 0:02:09]} Qh4 {[%emt 0:12:02]} 17. h3 {[%emt 0:02:03]} h5 {[%emt 0:01:16]} 18. Nc3 {[%emt 0:03:29]} Ng3 {[%emt 0:05:04]} 19. Bd2 {[%emt 0:05:27]} b4 {[%emt 0:01:19]} 20. Qxd5 {[%emt 0:05:35]} bxc3 {[%emt 0:02:48]} 21. Qc6+ {[%emt 0:01:46]} Bd7 {[%emt 0:00:55]} 22. Qd6 {[%emt 0:00:10]} Rc8 {[%emt 0:01:13]} 23. Be1 {[%emt 0:02:02]} Rh6 {[%emt 0:02:04]} 24. Qb4 {[%emt 0:03:51]} Ne2+ {[%emt 0:00:32]} 25. Kh1 {[%emt 0:00:45]} Qxh3+ {[%emt 0:15:36]} 0-1

[Event "VIII Iberoamericano Mexico 2022"]
[Site "Mexico City"]
[Date "2022.02.17"]
[Round "6.34"]
[White "Zaragoza Alanis, Miguel Arnulfo"]
[Black "Gongora Montes, Benjamin"]
[Result "1/2-1/2"]
[ECO "C55"]
[WhiteElo "1342"]
[BlackElo "2157"]
[Annotator "NA"]
[PlyCount "82"]
[EventDate "2022.02.12"]
[EventType "swiss"]
[EventCountry "MEX"]
[SourceTitle "playchess.com"]
[Source "ChessBase"]
[SourceQuality "1"]
[TimeControl "5400+30"]

1. e4 {[%emt 0:00:05]} e5 {[%emt 0:00:06]} 2. Nf3 {[%emt 0:00:05]} Nc6 {[%emt 0:00:05]} 3. Bc4 {[%emt 0:00:05]} Nf6 {[%emt 0:00:36]} 4. d3 {[%emt 0:00:16]} h6 {[%emt 0:00:13]} 5. O-O {[%emt 0:02:07]} d6 {[%emt 0:00:56]} 6. Re1 {[%emt 0:01:28]} g5 {[%emt 0:00:15]} 7. Nc3 {[%emt 0:00:45]} Bg4 {[%emt 0:00:30]} 8. Ne2 {[%emt 0:01:15]} Bxf3 {[%emt 0:00:37]} 9. gxf3 {[%emt 0:00:02]} Qd7 {[%emt 0:00:35]} 10. Ng3 {[%emt 0:00:22]} Ne7 {[%emt 0:03:58]} 11. Kf1 {[%emt 0:00:57]} Qh3+ {[%emt 0:01:01]} 12. Ke2 {[%emt 0:00:05]} Ng6 {[%emt 0:00:10]} 13. Be3 {[%emt 0:01:25]} d5 {[%emt 0:02:21]} 14. exd5 {[%emt 0:01:43]} O-O-O {[%emt 0:00:18]} 15. c3 {[%emt 0:02:02]} Nxd5 {[%emt 0:01:23]} 16. Bxd5 {[%emt 0:02:49]} Rxd5 {[%emt 0:00:08]} 17. Qa4 {[%emt 0:00:43]} Bc5 {[%emt 0:02:46]} 18. Qg4+ {[%emt 0:10:11]} Qxg4 {[%emt 0:00:26]} 19. fxg4 {[%emt 0:00:02]} Be7 {[%emt 0:03:53]} 20. Nf5 {[%emt 0:02:22]} f6 {[%emt 0:02:38]} 21. Rh1 {[%emt 0:03:12]} Rhd8 {[%emt 0:17:55]} 22. Rad1 {[%emt 0:00:34]} Bf8 {[%emt 0:03:03]} 23. a3 {[%emt 0:03:40]} a5 {[%emt 0:06:40]} 24. b4 {[%emt 0:04:37]} axb4 {[%emt 0:00:43]} 25. axb4 {[%emt 0:00:38]} b6 {[%emt 0:00:10]} 26. d4 {[%emt 0:07:10]} exd4 {[%emt 0:01:04]} 27. Rxd4 {[%emt 0:02:37]} Ne5 {[%emt 0:03:05]} 28. h3 {[%emt 0:00:49]} Nc6 {[%emt 0:03:12]} 29. Rxd5 {[%emt 0:00:40]} Rxd5 {[%emt 0:00:10]} 30. Rd1 {[%emt 0:00:08]} Rxd1 {[%emt 0:00:22]} 31. Kxd1 {[%emt 0:00:02]} Kd7 {[%emt 0:00:20]} 32. f4 {[%emt 0:00:54]} Ke6 {[%emt 0:00:43]} 33. Kd2 {[%emt 0:00:35]} Kd5 {[%emt 0:01:40]} 34. Kd3 {[%emt 0:00:28]} b5 {[%emt 0:00:18]} 35. Bd2 {[%emt 0:07:20]} Bd6 {[%emt 0:10:17]} 36. Ne3+ {[%emt 0:01:54]} Ke6 {[%emt 0:00:07]} 37. f5+ {[%emt 0:00:16]} Ke5 {[%emt 0:14:23]} 38. Ng2 {[%emt 0:01:18]} Kd5 {[%emt 0:00:11]} 39. Ne3+ {[%emt 0:00:10]} Ke5 {[%emt 0:00:07]} 40. Ng2 {[%emt 0:00:01]} Kd5 {[%emt 0:00:06]} 41. Ne3+ {[%emt 0:00:02]} Ke5 {[%emt 0:23:29]} 1/2-1/2